Cogmind - Beta 12 @@@ ROGUE MODE // 2023.11.25 @ 08:56:56 Player: Zeia Result: Destroyed by Alpha 7 with Multirail Performance ------------- Evolutions (7) 3500 Regions Visited (13) 2600 Robots Destroyed (245) 1225 Value Destroyed (10525) 10525 Prototype IDs (11) 220 Alien Tech Used (3) 600 Bonus (1016) 1016 TOTAL SCORE: 19686 Bonus ------- High Alert Combat Kills 1018 Follower Combat Kills 20 Friendly Fire -22 Cogmind --------- Core Integrity 0/1300 Matter 74/300 Energy 40/100 System Corruption 1% Temperature Cool (0) Movement Core (50) Location -3/Quarantine Parts ------- > --- POWER (2) -------- (None) > --- PROPULSION (6) --- (None) > --- UTILITY (9) ------ (None) > --- WEAPON (4) ------- (None) > --- INVENTORY (5) ---- Gyrokinetic Inverter Combat Antigrav System Peak State ------------ > --- POWER ------------ (None) > --- PROPULSION ------- Centrium Wheel Centrium Wheel Centrium Wheel Centrium Wheel Impulse Thruster Array > --- UTILITY ---------- Experimental Coolant Injector Improved Signal Interpreter Advanced Signal Interpreter Improved Force Field Advanced Recalibrator > --- WEAPON ----------- Quantum Rifle Nova Cannon Sigix Terminator > --- INVENTORY -------- Gyrokinetic Inverter Combat Antigrav System [Rating: 121] Favorites ----------- Power Improved Deuterium Engine Engine Improved Deuterium Engine Power Core Light Nuclear Core Reactor Light Antimatter Reactor Propulsion Light Treads Treads Light Treads Leg Flexi-carbon Leg Wheel Armored Wheel Hover Unit Gyrokinetic Inverter Flight Unit VTOL Module Utility Large Storage Unit Device Advanced Heat Sink Storage Large Storage Unit Processor Advanced Signal Interpreter Hackware Improved Hacking Suite Protection Makeshift Armor Plating Weapon Heavy Gauss Cannon Energy Gun Improved Heavy Laser Energy Cannon Phase Cannon Ballistic Gun Heavy Assault Rifle Ballistic Cannon Heavy Gauss Cannon Launcher Advanced EMP Blaster Impact Weapon Powered Hammer Slashing Weapon Sigix Broadsword Piercing Weapon Heavy Pick Special Melee Weapon Advanced Datajack Build | -11 -10 -9 -8 -7 -6 -6 -6 -5 -5 -5 -4 -3 -3 ------- Run | Jun Mat Mat Mat Fac Fac Low Low Fac Upp Upp Fac Res Qua Slots Evolved 14 | . . 2 2 2 2 . . 2 . . 2 2 . Power 1 | . . . . . 1 . . . . . . . . Propulsion 4 | . . . 1 1 . . . . . . 1 1 . Utility 7 | . . 1 1 1 . . . 2 . . 1 1 . Weapon 2 | . . 1 . . 1 . . . . . . . . Parts Attached 272 | 7 1 4 48 37 31 5 17 9 27 . 56 7 23 Power 34 | 1 . 2 5 3 4 1 3 . 3 . 9 1 2 Engine 13 | 1 . 2 1 . 4 1 2 . 2 . . . . Core 10 | . . . 4 1 . . 1 . 1 . 2 1 . Reactor 11 | . . . . 2 . . . . . . 7 . 2 Propulsion 75 | 3 . . 12 11 8 1 4 2 7 . 14 4 9 Treads 15 | . . . . 1 3 1 4 2 4 . . . . Leg 32 | 2 . . 12 10 . . . . 1 . 7 . . Wheel 14 | 1 . . . . 5 . . . 1 . 3 . 4 Hover 9 | . . . . . . . . . . . 4 3 2 Flight 5 | . . . . . . . . . 1 . . 1 3 Utility 60 | 1 1 1 8 4 7 2 6 4 3 . 16 2 5 Device 29 | . 1 1 3 2 3 2 3 . 1 . 8 1 4 Storage 6 | 1 . . 1 . 1 . 1 . 1 . 1 . . Processor 5 | . . . . 1 . . . 2 . . . 1 1 Hackware 1 | . . . . . . . . 1 . . . . . Protection 19 | . . . 4 1 3 . 2 1 1 . 7 . . Artifact . | . . . . . . . . . . . . . . Weapon 103 | 2 . 1 23 19 12 1 4 3 14 . 17 . 7 Energy Gun 15 | . . . 3 3 2 . . . 1 . 5 . 1 Energy Cannon 25 | . . 1 7 . 7 . 2 2 1 . 2 . 3 Ballistic Gun 20 | 2 . . 9 6 . . . . 2 . 1 . . Ballistic Cannon 20 | . . . . 5 1 1 1 1 4 . 7 . . Launcher 17 | . . . 3 5 2 . 1 . 3 . 1 . 2 Special Weapon . | . . . . . . . . . . . . . . Impact Weapon 1 | . . . 1 . . . . . . . . . . Slashing Weapon 1 | . . . . . . . . . . . . . 1 Piercing Weapon 3 | . . . . . . . . . 3 . . . . Special Melee Weapon 1 | . . . . . . . . . . . 1 . . Unidentified Prototypes 12 | . . . . 3 2 1 . . . . 1 1 4 Parts Lost 128 | . . . 22 17 13 1 6 4 17 . 27 7 14 Power 19 | . . . 3 3 1 1 1 . 3 . 4 1 2 Propulsion 41 | . . . 8 4 3 . 2 1 5 . 8 6 4 Utility 34 | . . . 5 5 3 . 1 2 5 . 9 . 4 Weapon 34 | . . . 6 5 6 . 2 1 4 . 6 . 4 Highest Loss Streak 13 | . . . 8 4 3 2 5 1 13 . 6 4 8 To Critical Strikes 1 | . . . . . . . . . . . . . 1 Average Slot Usage (%) 81 | . 91 85 94 85 87 87 98 93 72 41 73 19 41 Engine 6 | . 14 11 . . 11 12 12 11 8 5 1 . . Core 1 | . . . 7 . . . . . . . 2 1 . Reactor 1 | . . . . 2 . . . . . . 5 . 1 Treads 7 | . . . . . 10 7 19 22 15 . . . . Leg 10 | . 28 22 26 28 . . . . . 5 17 . . Wheel 2 | . . . . . 7 13 6 . . 5 1 . 7 Device 12 | . 6 19 17 10 16 12 13 11 8 5 17 . 7 Storage 6 | . 14 11 9 7 6 6 6 5 4 5 4 . . Processor 1 | . . . . 5 . . . 3 2 . . 1 7 Protection 6 | . . . 7 3 7 6 12 10 9 . 5 . . Energy Gun 2 | . . . 3 3 7 . . . . . 3 . 1 Energy Cannon 6 | . . 8 6 . 14 13 12 4 3 . . . 1 Ballistic Gun 4 | . 28 13 12 9 . . . . 1 5 . . . Ballistic Cannon 6 | . . . . 6 2 13 12 14 9 . 10 . . Naked Turns 80 | . . . . . . . . . . . 73 . 7 Heaviest Build 110 | 14 15 19 46 50 98 85 90 86 90 33 110 5 43 Greatest Support 111 | 20 20 20 51 55 63 40 80 86 101 16 111 44 64 Greatest Overweight (x) 16 | . . . 2 1 8 3 4 1 11 2 16 . 1 Average Overweight (x) . | . . . . . 4 2 1 . . 2 . . . Largest Inventory Capacity 15 | 8 8 8 15 15 15 15 15 15 15 15 15 5 5 Average Capacity 13 | 7 8 8 11 15 15 15 15 15 14 15 14 5 5 Most Carried 15 | 4 8 8 15 15 15 15 15 15 15 12 15 5 5 Average Carried 11 | 2 7 7 10 14 13 12 14 14 11 11 10 4 3 Final Capacity 15 | 8 8 8 15 15 15 15 15 15 15 15 5 5 5 Final Carried 15 | 3 8 8 14 13 14 15 15 14 10 12 5 3 2 Class Distribution -------------------- 34% | Scavenger-Tank 24% | Mutant 15% | Tank 14% | Scavenger-Mutant 4% | Gunner Dominant Class ---------------- Mutant | -10/Materials Mutant | -9/Materials Tank | -8/Materials Mutant | -7/Factory Tank | -6/Factory Scavenger-Mutant | -6/Lower Caves Scavenger-Tank | -6/Lower Caves Scavenger-Tank | -5/Factory Scavenger-Tank | -5/Upper Caves Derelict-Mutant | -5/Upper Caves Scavenger-Tank | -4/Factory Mutant | -3/Research Mutant | -3/Quarantine Resources | -11 -10 -9 -8 -7 -6 -6 -6 -5 -5 -5 -4 -3 -3 ----------- Run | Jun Mat Mat Mat Fac Fac Low Low Fac Upp Upp Fac Res Qua Matter Collected 6705 | 191 45 128 1050 1064 388 119 386 423 922 19 1879 . 91 Remotely . | . . . . . . . . . . . . . . Salvage Created 9263 | . 45 128 1804 978 2054 178 637 636 826 . 1766 . 211 Parts 412 | . 8 13 89 48 75 6 27 23 25 . 87 . 11 Haulers Intercepted 4 | . . . 1 1 . . . . . . . . 2 Recyclers Shooed 4 | . . . . 1 1 . . . . . 2 . . Parts Field Recycled . | . . . . . . . . . . . . . . Retrieved Matter . | . . . . . . . . . . . . . . Parts Self-Destructed 32 | . . . . . . 6 9 . 17 . . . . Prevented 19 | . . . . . . . 9 . 10 . . . . Kills | -11 -10 -9 -8 -7 -6 -6 -6 -5 -5 -5 -4 -3 -3 ------- Run | Jun Mat Mat Mat Fac Fac Low Low Fac Upp Upp Fac Res Qua Combat Hostiles Destroyed 193 | . 3 3 38 29 33 3 11 17 18 . 33 . 5 Melee 4 | . . . . . . . . . 2 . . . 2 Guns 33 | . 3 . 14 3 8 . . . 3 . 2 . . Cannons 86 | . . 3 14 4 11 3 9 14 4 . 24 . . AOE 57 | . . . 8 22 9 . . 2 7 . 6 . 3 Classes Destroyed 18 | . 1 2 9 3 . . 1 1 . . . . 1 Worker 11 | . . . 3 1 4 . . . . . 2 . 1 Builder 18 | . . . 5 3 4 . . . . . 5 . 1 Tunneler 1 | . . . . . . . . 1 . . . . . Hauler 4 | . . . 1 1 . . . . . . . . 2 Recycler 9 | . . . 1 3 1 . . . . . 2 . 2 Mechanic 6 | . . . 1 2 1 . . . . . 1 . 1 Operator 2 | . . . 1 1 . . . . . . . . . Watcher 3 | . . . 1 1 1 . . . . . . . . Swarmer 37 | . 3 . 4 3 4 . . 5 9 . 4 . 5 Grunt 88 | . . 2 27 13 18 3 5 7 3 . 10 . . Brawler 7 | . . . . 1 2 . . 1 3 . . . . Duelist 3 | . . . 1 . 1 . . . 1 . . . . Researcher 2 | . . . . . . . . . . . . . 2 Sentry 14 | . . 1 4 . 4 . . 1 1 . 3 . . Specialist 4 | . . . 2 2 . . . . . . . . . Hunter 10 | . . . . 3 2 . . 1 . . 4 . . Programmer 23 | . . . . 7 2 . . 2 . . 12 . . Thug 1 | . . . . . . . 1 . . . . . . Savage 4 | . . . . . . . 4 . . . . . . Mutant 2 | . . . . . . . 1 . 1 . . . . Best Kill Streak 18 | . 3 2 18 13 16 3 6 6 5 . 7 . 7 Combat Bots Only 10 | . 3 2 10 8 10 3 6 6 5 . 5 . 5 Max Kills in Single Turn 7 | . 1 1 7 3 6 1 2 2 3 . 3 . 7 Gunslinging . | . . . . . . . . . . . . . . Exploded 3 | . . . 3 3 2 . . 2 3 . 3 . 2 Melee 1 | . . . . . . . . . 1 . . . 1 Uniques/NPCs Destroyed . | . . . . . . . . . . . . . . Combat | -11 -10 -9 -8 -7 -6 -6 -6 -5 -5 -5 -4 -3 -3 -------- Run | Jun Mat Mat Mat Fac Fac Low Low Fac Upp Upp Fac Res Qua Damage Taken 22196 | . 36 21 3273 2619 2523 285 1310 838 2291 . 5336 1223 2441 Core 3738 | . 17 . 507 257 225 59 133 20 329 . 882 628 681 Absorbed by Shields 3 | . . . . 3 . . . . . . . . . Redirected to Shielding 253 | . . . . . . . . . 63 . 190 . . Regen/Repaired (Parts) 360 | . . . . . . . . . . . 326 . 34 Core Remaining (%) 62 | 100 93 100 7 63 . . 50 . . 65 23 . . Volleys Fired 400 | . 4 4 98 65 57 7 20 22 39 . 73 . 11 Largest 4 | . 2 2 3 3 4 4 4 4 4 . 4 . 1 Hottest 300 | . 40 88 151 173 300 261 275 275 289 . 291 . 113 Shots Fired 1082 | . 8 8 229 123 190 18 59 86 88 . 262 . 11 Gun 389 | . 8 4 145 58 79 . . . 31 . 63 . 1 Cannon 628 | . . 4 75 40 101 18 55 86 46 . 197 . 6 Launcher 65 | . . . 9 25 10 . 4 . 11 . 2 . 4 Special . | . . . . . . . . . . . . . . Kinetic 550 | . 8 4 125 75 10 9 23 58 53 . 185 . . Thermal 331 | . . 4 42 12 119 9 32 28 18 . 60 . 7 Explosive 40 | . . . 9 25 3 . . . . . . . 3 Electromagnetic 161 | . . . 53 11 58 . 4 . 17 . 17 . 1 Robot Hit Streak 19 | . 5 2 12 12 13 4 5 19 11 . 7 . 2 Robot Miss Streak 6 | . 1 1 4 6 3 1 2 5 3 . 6 . 2 Penetration Max 1 | . . . . . . . . . . . 1 . . Secondary Targets 6 | . 1 . 2 1 2 . . . . . . . . Max Gunslinging Chain 1 | . 1 . 1 1 1 . . . . . . . . Shots Hit Robots 633 | . 5 4 160 66 122 11 27 49 54 . 127 . 8 Core Hits 423 | . 3 3 85 87 67 7 27 29 29 . 70 . 16 Critical Kills 4 | . . . . . 1 . 1 1 1 . . . . Critical Parts Destroyed 2 | . . . 2 . . . . . . . . . . Critical Strikes 30 | . . . 4 5 2 . 1 4 3 . 11 . . Burn 5 | . . . 2 1 . . . . 1 . 1 . . Meltdown 4 | . . . . . 1 . 1 1 1 . . . . Destroy 2 | . . . 2 . . . . . . . . . . Blast 18 | . . . . 3 1 . . 3 1 . 10 . . Corrupt 1 | . . . . 1 . . . . . . . . . Melee Attacks 21 | . . . 5 . . . . . 11 . . . 5 Impact 5 | . . . 5 . . . . . . . . . . Slashing 5 | . . . . . . . . . . . . . 5 Piercing 11 | . . . . . . . . . 11 . . . . Sneak Attacks 2 | . . . 2 . . . . . . . . . . Combat Hostiles . | . . . . . . . . . . . . . . Follow-up Attacks . | . . . . . . . . . . . . . . Damage Inflicted 33153 | . 62 76 5136 5280 5079 317 1280 2230 1933 . 5505 . 6255 Guns 5338 | . 62 15 1638 750 1529 . . . 333 . 982 . 29 Cannons 11792 | . . 61 1370 598 1925 317 1001 1771 778 . 3942 . 29 Explosions 15317 | . . . 1849 3919 1625 . 279 459 657 . 553 . 5976 Melee 665 | . . . 279 . . . . . 165 . . . 221 Ramming 41 | . . . . 13 . . . . . . 28 . . Kinetic 8460 | . 62 15 1363 909 171 112 325 1176 714 . 3613 . . Thermal 12852 | . . 61 752 231 3046 205 676 1054 344 . 1321 . 5162 Explosive 7115 | . . . 1769 3919 406 . . . . . 149 . 872 Electromagnetic 4020 | . . . 973 208 1456 . 279 . 710 . 394 . . Impact 279 | . . . 279 . . . . . . . . . . Slashing 221 | . . . . . . . . . . . . . 221 Piercing 165 | . . . . . . . . . 165 . . . . Highest Corruption 18 | . . 1 . 8 1 1 15 . 18 18 18 1 1 Average Corruption 7 | . . 1 . 3 1 1 10 . 17 18 9 1 1 Corruption Purged . | . . . . . . . . . . . . . . Corruption Blocked . | . . . . . . . . . . . . . . Effects 190 | . . . . 20 7 6 58 . 44 12 41 . 2 Message Errors 44 | . . . . 4 1 3 10 . 13 4 8 . 1 Matter Fused 44 | . . . . 2 2 . 14 . 9 3 13 . 1 Heat Flow Errors 19 | . . . . 2 3 2 6 . 3 1 2 . . Energy Discharges 22 | . . . . 4 . . 5 . 7 3 3 . . Parts Rejected 5 | . . . . 1 . . . . 1 . 3 . . Parts Fused 4 | . . . . 1 . . 1 . . 1 1 . . Data Loss (minor) 19 | . . . . 3 . 1 9 . 3 . 3 . . Data Loss (major) 8 | . . . . . 1 . 5 . 1 . 1 . . Misfires 9 | . . . . 1 . . 3 . 3 . 2 . . Alerts 5 | . . . . 1 . . 2 . 2 . . . . Misdirections 2 | . . . . . . . 1 . . . 1 . . Weapon Failures 9 | . . . . 1 . . 2 . 2 . 4 . . Overload Shots . | . . . . . . . . . . . . . . Overflow Damage 2311 | . . . 300 126 295 . 1 112 11 . 133 . 1333 Projectiles 232 | . . . 19 29 10 . 1 35 9 . 129 . . Explosions 1887 | . . . 117 97 285 . . 77 2 . 4 . 1305 Melee 192 | . . . 164 . . . . . . . . . 28 Knockbacks 59 | . . . 2 1 . . 1 9 1 . 45 . . Impact 3 | . . . 2 . . . . . . . 1 . . Kinetic 50 | . . . . 1 . . 1 9 1 . 38 . . Secondary 6 | . . . . . . . . . . . 6 . . Self-Inflicted Damage 2266 | . . . 283 61 589 . 3 50 25 . 150 . 1105 Shots 25 | . . . 4 1 10 . 1 1 1 . 4 . 3 Rammed 1 | . . . . 1 . . . . . . . . . Targets Rammed 6 | . . . . 2 . . . . . . 4 . . Kicked 5 | . . . . 1 . . . . . . 4 . . Crushed . | . . . . . . . . . . . . . . Highest Temperature 770 | . . . 221 356 265 485 456 445 657 57 770 . . Average Temperature 175 | . . . 107 89 106 235 192 165 280 31 254 . . Received Heat Transfer 4075 | . . 12 1422 621 687 108 343 138 153 . 501 36 54 Effects 64 | . . . . . . 3 4 8 22 . 27 . . Shutdowns 15 | . . . . . . 1 . 4 5 . 5 . . Energy Bleed 5 | . . . . . . . 2 . 1 . 2 . . Interference 13 | . . . . . . 2 . 4 6 . 1 . . Matter Decay 3 | . . . . . . . . . 2 . 1 . . Short Circuit 8 | . . . . . . . . . 5 . 3 . . Damage (minor) 8 | . . . . . . . 1 . 1 . 6 . . Damage (major) 10 | . . . . . . . 1 . 1 . 8 . . Damage (core) 2 | . . . . . . . . . 1 . 1 . . Siege Activations . | . . . . . . . . . . . . . . Robots Corrupted 7 | . . . 1 . 4 . 1 . 1 . . . . Combat Hostiles 7 | . . . 1 . 4 . 1 . 1 . . . . Parts Fried 15 | . . . 10 . 3 . . . 2 . . . . Impact Corruptions 7 | . . . 6 . . . . . . . 1 . . Robots Melted 5 | . . . . . 1 . 1 1 1 . 1 . . Combat Hostiles 5 | . . . . . 1 . 1 1 1 . 1 . . Parts Melted 18 | . . . 1 . 8 . 3 1 3 . 2 . . Heat Transferred 11169 | . . 111 1506 313 3612 272 1033 1322 750 . 1936 . 314 Parts Sabotaged 4 | . . . . . 4 . . . . . . . . Parts Stolen . | . . . . . . . . . . . . . . Parts Stripped . | . . . . . . . . . . . . . . Power Chain Reactions 6 | . . . 1 . 4 . . . 1 . . . . Missiles Intercepted . | . . . . . . . . . . . . . . Alert | -11 -10 -9 -8 -7 -6 -6 -6 -5 -5 -5 -4 -3 -3 ------- Run | Jun Mat Mat Mat Fac Fac Low Low Fac Upp Upp Fac Res Qua Peak Influence 1068 | . 117 134 522 580 993 . . 483 . . 907 565 1068 Initial 475 | . . 49 56 95 240 . . . . . 11 475 303 Average 335 | . 75 73 222 344 584 . . 171 . . 366 506 376 Maximum Alert Level 3 | . . . 2 2 3 . . 2 . . 3 2 3 Low Security (%) 37 | 100 100 100 56 35 . . . 68 . . 28 . . Level 1 24 | . . . 28 17 18 . . 25 . . 34 . 58 Level 2 30 | . . . 14 46 51 . . 6 . . 23 100 39 Level 3 8 | . . . . . 30 . . . . . 13 . 2 Level 4 . | . . . . . . . . . . . . . . Level 5 . | . . . . . . . . . . . . . . High Security . | . . . . . . . . . . . . . . Max Security . | . . . . . . . . . . . . . . Squads Dispatched 37 | . 1 1 9 8 5 . . 1 . . 10 2 . Investigation 1 | . . 1 . . . . . . . . . . . Extermination 9 | . . . . 2 2 . . 1 . . 4 . . Reinforcement 19 | . 1 . 6 5 1 . . . . . 4 2 . Assault 3 | . . . . 1 2 . . . . . . . . Garrison 5 | . . . 3 . . . . . . . 2 . . Intercept . | . . . . . . . . . . . . . . Searches Triggered . | . . . . . . . . . . . . . . Construction Impeded 4 | . . . 2 1 . . . . . . 1 . . Haulers Reinforced 2 | . . . . 1 . . . . . . 1 . . Active Scanning Responses . | . . . . . . . . . . . . . . Cargo Convoy Interrupts 1 | . . . . 1 . . . . . . . . . Stealth | -11 -10 -9 -8 -7 -6 -6 -6 -5 -5 -5 -4 -3 -3 --------- Run | Jun Mat Mat Mat Fac Fac Low Low Fac Upp Upp Fac Res Qua Distress Signals 17 | . . 2 6 2 1 . . . . . 4 2 . Communications Jammed . | . . . . . . . . . . . . . . Distress Signals . | . . . . . . . . . . . . . . Times Spotted 319 | . 5 7 54 54 48 3 15 22 20 . 66 19 6 Peak Tracking Total 12 | . 3 3 9 10 6 3 9 6 7 . 9 12 4 Tactical Retreats 20 | . . . 3 2 1 . . 2 1 . 7 4 . Traps | -11 -10 -9 -8 -7 -6 -6 -6 -5 -5 -5 -4 -3 -3 ------- Run | Jun Mat Mat Mat Fac Fac Low Low Fac Upp Upp Fac Res Qua Traps Triggered 15 | . . . 1 5 2 . 1 . . . 1 2 3 Indirectly 1 | . . . . . 1 . . . . . . . . Trap Hack Attempts . | . . . . . . . . . . . . . . Triggered . | . . . . . . . . . . . . . . Disarmed . | . . . . . . . . . . . . . . Reprogrammed . | . . . . . . . . . . . . . . Reused . | . . . . . . . . . . . . . . Traps Extracted . | . . . . . . . . . . . . . . Installed . | . . . . . . . . . . . . . . Triggered . | . . . . . . . . . . . . . . Machines | -11 -10 -9 -8 -7 -6 -6 -6 -5 -5 -5 -4 -3 -3 ---------- Run | Jun Mat Mat Mat Fac Fac Low Low Fac Upp Upp Fac Res Qua Machines Disabled 57 | . . . 4 5 14 . . 6 2 . 10 . 16 Max in Single Turn 13 | . . . 1 3 4 . . 6 1 . 4 . 13 Machines Repaired . | . . . . . . . . . . . . . . Machines Sabotaged . | . . . . . . . . . . . . . . Overloaded Fab Kills . | . . . . . . . . . . . . . . Hacking | -11 -10 -9 -8 -7 -6 -6 -6 -5 -5 -5 -4 -3 -3 --------- Run | Jun Mat Mat Mat Fac Fac Low Low Fac Upp Upp Fac Res Qua Machines Accessed 27 | . 6 2 6 4 1 1 . 2 . . 2 . 3 Terminals 20 | . 6 2 5 2 1 . . . . . 1 . 3 Fabricators 1 | . . . . 1 . . . . . . . . . Repair Stations 2 | . . . . . . . . 1 . . 1 . . Recycling Units 3 | . . . 1 1 . . . 1 . . . . . Scanalyzers . | . . . . . . . . . . . . . . Garrison Access . | . . . . . . . . . . . . . . Total Hacks 63 | . 14 4 15 8 3 1 . 3 . . 10 . 5 Successful 35 | . 7 3 8 3 2 1 . 2 . . 7 . 2 Failed 28 | . 7 1 7 5 1 . . 1 . . 3 . 3 Catastrophic 7 | . 2 1 3 1 . . . . . . . . . Database Lockouts . | . . . . . . . . . . . . . . Manual 39 | . 11 2 13 4 3 . . . . . 4 . 2 Terminals 52 | . 14 4 14 4 3 . . . . . 8 . 5 Fabricators 1 | . . . . 1 . . . . . . . . . Repair Stations 3 | . . . . . . . . 1 . . 2 . . Recycling Units 6 | . . . 1 3 . . . 2 . . . . . Scanalyzers . | . . . . . . . . . . . . . . Garrison Access . | . . . . . . . . . . . . . . Terminal Hacks 15 | . 2 2 3 . 1 1 . . . . 4 . 2 Record 1 | . . . . . . . . . . . . . 1 Prototype ID Bank 1 | . . 1 . . . . . . . . . . . Open Door 2 | . . . . . . 1 . . . . . . 1 Emergency Access Points 1 | . . . . . . . . . . . 1 . . Terminal Index 1 | . . . . . . . . . . . 1 . . Alert Level 2 | . . 1 1 . . . . . . . . . . Unreport Threat 4 | . . . 2 . 1 . . . . . 1 . . Locate Traps 2 | . 1 . . . . . . . . . 1 . . Zone Layout 1 | . 1 . . . . . . . . . . . . Fabricator Hacks . | . . . . . . . . . . . . . . Repair Station Hacks 2 | . . . . . . . . . . . 2 . . Scan Component 1 | . . . . . . . . . . . 1 . . Repair 1 | . . . . . . . . . . . 1 . . Recycling Unit Hacks 6 | . . . 1 3 . . . 2 . . . . . Process 1 | . . . . 1 . . . . . . . . . Report Inventory 3 | . . . 1 1 . . . 1 . . . . . Retrieve Matter 1 | . . . . 1 . . . . . . . . . Retrieve Components 1 | . . . . . . . . 1 . . . . . Scanalyzer . | . . . . . . . . . . . . . . Garrison Access Hacks . | . . . . . . . . . . . . . . Unauthorized Hacks 12 | . 5 1 4 . 1 . . . . . 1 . . Terminals 12 | . 5 1 4 . 1 . . . . . 1 . . Botnet 12 | . 5 1 4 . 1 . . . . . 1 . . Fabricators . | . . . . . . . . . . . . . . Repair Stations . | . . . . . . . . . . . . . . Recycling Units . | . . . . . . . . . . . . . . Scanalyzers . | . . . . . . . . . . . . . . Garrison Access . | . . . . . . . . . . . . . . Data Cores Recovered . | . . . . . . . . . . . . . . Used . | . . . . . . . . . . . . . . Hacking Detections 22 | . 6 2 6 3 1 . . 2 . . . . 2 Full Trace Events 1 | . . 1 . . . . . . . . . . . Feedback Events 1 | . . 1 . . . . . . . . . . . Corruption 1 | . . 1 . . . . . . . . . . . Feedback Blocked . | . . . . . . . . . . . . . . Robot Schematics Acquired . | . . . . . . . . . . . . . . Robots Built . | . . . . . . . . . . . . . . Authchips . | . . . . . . . . . . . . . . Time . | . . . . . . . . . . . . . . Total Robot Build Rating . | . . . . . . . . . . . . . . Part Schematics Acquired . | . . . . . . . . . . . . . . Parts Built . | . . . . . . . . . . . . . . Authchips . | . . . . . . . . . . . . . . Time . | . . . . . . . . . . . . . . Total Part Build Rating . | . . . . . . . . . . . . . . Parts Repaired 1 | . . . . . . . . . . . 1 . . Time 26 | . . . . . . . . . . . 26 . . Parts Recycled . | . . . . . . . . . . . . . . Recycled Matter 56 | . . . . 56 . . . . . . . . . Retrieved Matter 56 | . . . . 56 . . . . . . . . . Retrieved Components 2 | . . . . . . . . 2 . . . . . Parts Scanalyzed . | . . . . . . . . . . . . . . Part Schematics Acquired . | . . . . . . . . . . . . . . Parts Damaged . | . . . . . . . . . . . . . . Bothacking | -11 -10 -9 -8 -7 -6 -6 -6 -5 -5 -5 -4 -3 -3 ------------ Run | Jun Mat Mat Mat Fac Fac Low Low Fac Upp Upp Fac Res Qua Used RIF Installer . | . . . . . . . . . . . . . . Robots Hacked . | . . . . . . . . . . . . . . Non-combat . | . . . . . . . . . . . . . . Combat . | . . . . . . . . . . . . . . Robot Hacks Applied . | . . . . . . . . . . . . . . Relay Couplers Released . | . . . . . . . . . . . . . . Fabnet Peak Effective % . | . . . . . . . . . . . . . . Robots Rewired 1 | . . . . . . . . . 1 . . . . Allies Hacked . | . . . . . . . . . . . . . . Hacks Repelled . | . . . . . . . . . . . . . . Allies | -11 -10 -9 -8 -7 -6 -6 -6 -5 -5 -5 -4 -3 -3 -------- Run | Jun Mat Mat Mat Fac Fac Low Low Fac Upp Upp Fac Res Qua Total Allies 1 | . . . . . . . . . 1 . . . . Largest Group 1 | . . . . . . . . . 1 . . . . Highest-Rated Group 30 | . . . . . . . . . 30 . . . . Highest-Rated Ally 30 | . . . . . . . . . 30 . . . . Total Orders . | . . . . . . . . . . . . . . Ally Attacks 6 | . . . . . . . . . 6 . . . . Total Damage 111 | . . . . . . . . . 111 . . . . Kills 1 | . . . . . . . . . 1 . . . . Allies Corrupted . | . . . . . . . . . . . . . . Allies Melted . | . . . . . . . . . . . . . . Intel | -11 -10 -9 -8 -7 -6 -6 -6 -5 -5 -5 -4 -3 -3 ------- Run | Jun Mat Mat Mat Fac Fac Low Low Fac Upp Upp Fac Res Qua Robot Analysis Total . | . . . . . . . . . . . . . . Derelict Logs Recovered 4 | . . . . . . 1 2 . 1 . . . . Drone Launches . | . . . . . . . . . . . . . . Drone Recoveries . | . . . . . . . . . . . . . . Exploration | -11 -10 -9 -8 -7 -6 -6 -6 -5 -5 -5 -4 -3 -3 ------------- Run | Jun Mat Mat Mat Fac Fac Low Low Fac Upp Upp Fac Res Qua Turns Passed 14343 | 56 281 362 2017 1452 1562 934 1469 719 2520 247 1988 312 424 Spaces Moved 8753 | 38 213 272 1125 819 682 684 887 366 1291 189 1239 492 456 Core 234 | 1 . . . . . . . . . . 211 8 14 Treads 2102 | . . . . 13 147 6 449 366 1121 . . . . Legs 3263 | 33 213 272 1125 806 . . . . 1 . 813 . . Wheels 2277 | 4 . . . . 535 678 438 . 69 189 210 . 154 Hover 554 | . . . . . . . . . . . 5 474 75 Flight 323 | . . . . . . . . . 100 . . 10 213 Fastest Speed 35 | 50 120 120 120 90 130 130 130 162 35 130 50 40 42 Average Speed 134 | 113 120 120 126 120 184 131 154 166 178 130 114 60 64 Slowest Speed 915 | 120 120 120 270 240 320 325 400 245 915 130 850 70 126 Overloaded Moves . | . . . . . . . . . . . . . . Propulsion Burnouts . | . . . . . . . . . . . . . . Robots Hopped . | . . . . . . . . . . . . . . Cave-ins Triggered . | . . . . . . . . . . . . . . Exploration Rate (%) 40 | 4 39 24 56 22 29 85 96 9 94 22 22 21 46 Regions Visited 13 Branch Regions 5 Pre-discovered Areas 1 | . . . . . . . . . 1 . . . . Known Exits Taken 2 | . . . . . . . . 1 . 1 . . . Unknown Exits Taken 11 | 1 1 1 1 1 1 1 1 . 1 . 1 1 . Scrap Searched 12 | . . . . . . 6 2 . 3 1 . . . Spaces Dug 7 | . . . . . . . . . 1 . 6 . . Terrain Destroyed 1275 | . . . 90 103 152 3 11 71 22 . 157 . 666 Melee 1 | . . . . . . . . . 1 . . . . Projectile 183 | . . . . 6 21 3 11 25 18 . 97 . 2 AOE 1091 | . . . 90 97 131 . . 46 3 . 60 . 664 Terrain Rammed . | . . . . . . . . . . . . . . Walls Destroyed . | . . . . . . . . . . . . . . Machines Disabled . | . . . . . . . . . . . . . . Actions | -11 -10 -9 -8 -7 -6 -6 -6 -5 -5 -5 -4 -3 -3 --------- Run | Jun Mat Mat Mat Fac Fac Low Low Fac Upp Upp Fac Res Qua Total 10494 | 48 230 301 1516 1166 858 702 945 425 1413 190 1632 506 562 Wait 752 | . 8 12 179 210 52 . 6 18 17 . 206 1 43 Move 8740 | 37 212 271 1124 818 681 683 886 365 1290 188 1238 491 456 Hop . | . . . . . . . . . . . . . . Pick Up 150 | 3 5 3 37 15 20 6 4 5 10 2 30 3 7 Fast Attach 101 | 6 1 1 9 12 12 1 8 2 4 . 26 5 14 Attach 106 | 1 . 1 19 10 15 4 3 6 13 . 23 2 9 Detach 32 | 1 . 1 1 1 6 . 2 3 5 . 9 . 3 Swap 67 | . . 2 20 15 4 . 6 1 10 . 8 . 1 Drop 97 | . . 4 24 13 11 1 8 3 11 . 15 4 3 Fire 400 | . 4 4 98 65 57 7 20 22 39 . 73 . 11 Melee 21 | . . . 5 . . . . . 11 . . . 5 Ram . | . . . . . . . . . . . . . . Kick 5 | . . . . 1 . . . . . . 4 . . Crush 1 | . . . . 1 . . . . . . . . . Escape Stasis 14 | . . . . 5 . . . . . . . . 9 Rewire 8 | . . 2 . . . . 2 . 3 . . . 1 Trap . | . . . . . . . . . . . . . . Miscellaneous . | . . . . . . . . . . . . . . Route ------- -11/Junkyard -10/Materials -9/Materials -8/Materials -7/Factory (discovered 2 exits: *Fac / [*Low]) -6/Factory -6/Lower Caves -6/Lower Caves -5/Factory (discovered 3 exits: *Fac x2 / *Upp) -5/Upper Caves -5/Upper Caves -4/Factory -3/Research -3/Quarantine History --------- Turn | Location | Event 7 | -11/Junkyard | Discovered new exit (range 16) 57 | -11/Junkyard | Entered Materials 265 | -10/Materials | Discovered new exit (range 16) 300 | -10/Materials | Build established: Mutant 338 | -10/Materials | Entered another Materials area 338 | -9/Materials | Evolved 2 slots: Utility x1, Weapon x1 674 | -9/Materials | Discovered new exit (range 16) 700 | -9/Materials | Entered another Materials area 700 | -8/Materials | Evolved 2 slots: Propulsion x1, Utility x1 1066 | -8/Materials | Lost 4 parts (1n2u1w) 1085 | -8/Materials | Build established: Tank 1417 | -8/Materials | Garrison activated, responded to threat 1548 | -8/Materials | Core integrity fell below 50% 1615 | -8/Materials | Lost 5 parts (1p2n1u1w) 1619 | -8/Materials | Destroyed 10 combat bots 1641 | -8/Materials | Discovered new exit (range 15) 2139 | -8/Materials | Build established: Scavenger-Mutant 2423 | -8/Materials | Core integrity fell below 20% 2555 | -8/Materials | Lost 8 parts (1p3n1u3w) 2717 | -8/Materials | Entered Factory 2717 | -7/Factory | Evolved 2 slots: Propulsion x1, Utility x1 2963 | -7/Factory | Discovered new exit (range 11) 3210 | -7/Factory | Build established: Gunner 3282 | -7/Factory | Destroyed 8 combat bots 3330 | -7/Factory | Discovered new exit (range 10) 3655 | -7/Factory | Cargo convoy interrupted 3690 | -7/Factory | Destroyed 8 combat bots 3697 | -7/Factory | Lost 4 parts (2n2w) 3917 | -7/Factory | First assault squad dispatched 4017 | -7/Factory | Lost 4 parts (1p2u1w) 4029 | -7/Factory | Build established: Mutant 4157 | -7/Factory | Lost 3 parts (1p1n1w) 4169 | -7/Factory | Entered another Factory area 4169 | -6/Factory | Evolved 2 slots: Power x1, Weapon x1 4487 | -6/Factory | Build established: Tank 4577 | -6/Factory | Destroyed 7 combat bots 4869 | -6/Factory | First assault squad dispatched 5014 | -6/Factory | Destroyed 10 combat bots 5018 | -6/Factory | Lost 3 parts (2n1u) 5699 | -6/Factory | Discovered new exit (range 10) 5731 | -6/Factory | Entered Lower Caves 6009 | -6/Lower Caves | Build established: Scavenger-Mutant 6441 | -6/Lower Caves | Learned 4 Factory zone layouts 6544 | -6/Lower Caves | Discovered new exit (range 8) 6665 | -6/Lower Caves | Entered another Lower Caves area 6783 | -6/Lower Caves | Encountered a Warlord checkpoint 6893 | -6/Lower Caves | Learned Factory garrison access intel 6957 | -6/Lower Caves | Build established: Scavenger-Tank 7294 | -6/Lower Caves | Attacked by a faux Warlord 7324 | -6/Lower Caves | System corruption reached 10% 7368 | -6/Lower Caves | Lost 5 parts (1p2n1u1w) 8040 | -6/Lower Caves | Discovered new exit (range 9) 8134 | -6/Lower Caves | Entered Factory 8134 | -5/Factory | Evolved 2 slots: Utility x2 8135 | -5/Factory | Identified exit to Upper Caves 8136 | -5/Factory | Identified exit to Factory 8137 | -5/Factory | Loaded intel: 4 garrison access locations 8317 | -5/Factory | Discovered exit to Factory (range 4) 8853 | -5/Factory | Entered Upper Caves 8907 | -5/Upper Caves | Learned location of Warlord (-4) 9877 | -5/Upper Caves | Attacked by a delusional Derelict stockpiling parts 10319 | -5/Upper Caves | Attracted the attention of an 0b10 outpost 10342 | -5/Upper Caves | System corruption reached 10% 10420 | -5/Upper Caves | Lost 13 parts (2p3n5u3w) 10847 | -5/Upper Caves | Build established: Mutant 11090 | -5/Upper Caves | Lost 3 parts (1p1n1w) 11257 | -5/Upper Caves | Discovered new exit (range 14) 11373 | -5/Upper Caves | Entered another Upper Caves area 11436 | -5/Upper Caves | Discovered exit to Factory (range 10) 11609 | -5/Upper Caves | Build established: Derelict-Mutant 11620 | -5/Upper Caves | Entered Factory 11620 | -4/Factory | Evolved 2 slots: Propulsion x1, Utility x1 11741 | -4/Factory | Lost 6 parts (1n5u) 11997 | -4/Factory | Build established: Scavenger-Mutant 12594 | -4/Factory | Repaired Lrg. Storage Unit 12619 | -4/Factory | Build established: Scavenger-Tank 12999 | -4/Factory | Garrison activated, responded to threat 13063 | -4/Factory | Lost 3 parts (1p1n1u) 13287 | -4/Factory | System corruption reached 10% 13374 | -4/Factory | Lost 6 parts (1p1n1u3w) 13428 | -4/Factory | Garrison activated, responded to threat 13463 | -4/Factory | Released all parts (7) 13493 | -4/Factory | Lost 6 parts (2n1u3w) 13524 | -4/Factory | Core integrity fell below 50% 13588 | -4/Factory | Spotted B-86 Titan 13593 | -4/Factory | Discovered new exit (range 16) 13608 | -4/Factory | Entered Research 13608 | -3/Research | Evolved 2 slots: Propulsion x1, Utility x1 13674 | -3/Research | Spotted B-86 Titan 13781 | -3/Research | Build established: Mutant 13873 | -3/Research | Spotted B-86 Titan 13914 | -3/Research | Discovered new exit (range 11) 13914 | -3/Research | Spotted B-90 Cyclops 13920 | -3/Research | Entered Quarantine 13942 | -3/Quarantine | Lost 4 parts (4n) 14018 | -3/Quarantine | Found Unknown Launcher 14036 | -3/Quarantine | Found Alien Slashing Weapon 14036 | -3/Quarantine | Identified Sigix Broadsword 14128 | -3/Quarantine | Core integrity fell below 50% 14146 | -3/Quarantine | Identified Fusion Bomb Launcher 14183 | -3/Quarantine | Lost 6 parts (2p1n1u2w) 14232 | -3/Quarantine | Found Alien Artifact 14233 | -3/Quarantine | Identified Terrabomb 14233 | -3/Quarantine | Used Terrabomb 14308 | -3/Quarantine | Spotted Alpha 7 14334 | -3/Quarantine | Found Alien Launcher 14334 | -3/Quarantine | Identified Sigix Terminator 14335 | -3/Quarantine | Fired Sigix Terminator 14336 | -3/Quarantine | Core integrity fell below 20% 14337 | -3/Quarantine | Released all parts (5) 14344 | -3/Quarantine | Destroyed by Alpha 7 with Multirail Last Messages --------------- 14335_ Exp. Coolant Injector destroyed. 14335_ Destroyed Exp. Coolant Injector. 14335_ Suspension Chamber breached. [Achievement: Hard Hitter] 14335_ Destroyed Unknown Engine. 14335_ R-10 Processor destroyed. 14335_ Machine disabled. 14335_ Research Terminal disabled. [Achievement: It Was An Accident, I Swear] 14335_ K-01 Serf destroyed. 14335_ Terminal disabled. 14337_ Released Centrium Wheel. 14337_ Released Adv. Signal Interpreter. 14337_ Released Imp. Signal Interpreter. 14337_ Released Quantum Rifle. 14337_ Released Centrium Wheel. 14338_ The unstable cave ceiling collapses. 14338_ Penetrated by Slug. [Achievement: Just Browsing] [Achievement: Achiever] Map ----- +----------------------------------------------------+ | " # ! """""""""""""""""""" #?????????????? | | " # #?????????????? | | " + ?????????????? | | " # ????????????? | | " "" " ???????????? | | " "" " """""""""""""""""" ???????????? | | # """"" " " """" " " ?????????? | | # """!" " " "" " ?????????? | | # """"" """" " "" " " ????????? | | # "" " " " "" "" " # ????????? | | ????" " " " "" ;; " ???????? | | ???? ? " " " ""[= ;; ; """"???????? | | ???????""" " " ;;;=;;;;;;; ???????? | | ???????" """" "";; ;;;;;;;;;;; #??????? | | ???????? ; #??????? | | ???????? ; #??????? | | ??????? ; #???????? | | ???????? ; #???????? | | ???????? ;;;;;;; #????????? | | ????????? ; ; #????????? | | ????????? ; ; #????????? | | ?????????? ; ; ##????????? | | ?????????? ; ; #?????????? | | ??????????;;; ; ; ##?????????? | | ??????????# ; ;;;;;;; ###??????????? | | ????????????# ;;;;; ;;@;; ####????????????? | | ????????????# ; ###???????????????? | | ????????????# ;## #?????????????????? | | ????????????# ##?##?????????????????? | | ????????????# #?????????????????????? | | ????????????###########+####?????????????????????? | | ?????????????????????????????????????????????????? | | ?????????????????????????????????????????????????? | | ?????????????????????????????????????????????????? | | ?????????????????????????????????????????????????? | | ?????????????????????????????????????????????????? | | ?????????????????????????????????????????????????? | | ?????????????????????????????????????????????????? | | ?????????????????????????????????????????????????? | | ?????????????????????????????????????????????????? | | ?????????????????????????????????????????????????? | | ?????????????????????????????????????????????????? | | ?????????????????????????????????????????????????? | | ?????????????????????????????????????????????????? | | ?????????????????????????????????????????????????? | | | | | | | | | | | +----------------------------------------------------+ Best States ------------- Heat Dissipation 100 Coolant Potential 65 Energy Generation 37 Energy Capacity 480 Matter Stores 300 Matter Capacity 300 Sight Range 16 Robot Scan Range 16 Terrain Scan Density 10 Jamming Range 14 Additional Mass Support 6 Base Temperature (-) 200 Armor Coverage 600 Resistance: TH 30 Core Shielding 30 Evasion (%) 63 Targeting Accuracy 5 Recoil Reduction 4 Energy Filtering 30 Offensive Hacking 12 Item Schematics ----------------- None Robot Schematics ------------------ None Fabricated ------------ Nothing Alien Tech Used ----------------- Sigix Broadsword Terrabomb Sigix Terminator Achievements -------------- A New Friend Achiever Alien Tech Hard Hitter It Was An Accident, I Swear Just Browsing Power Corrupts Challenges ------------ None Game ------ Seed CryofiberArcTrap Manual? 0 Play Time 03:26:20 Cumulative 22.6 hours Start 2023.11.24 @ 19:07:56 End 2023.11.25 @ 08:56:56 Sessions 13 Manual Loads 0 Difficulty Rogue Special Mode None Game No. 14 Rogue 14 Adventurer 0 Explorer 0 Win Type - Total 0 Types 0/0/0/0/0/0/0/0/0 Lore% 19 Gallery% 27 Achievement% 25 Wizard Run 0 Options --------- ASCII 0 Keyboard 1 Movement Vi Keybinds 0 Fullscreen 2 Font 24/Smallcaps Map View 76x50 Tactical HUD 1 Map Filters NONE Filters NONE Steam 1 RUN: 4049c774-c52f-4459-85f8-23a6f3c0d259